bitfinex-derivatives/quotes_SOLF0:USTF0_20250211
["timestamp","ask_amount","ask_price","bid_price","bid_amount"]
[1739298559360,13.94171289,196.88,196.78,5.0815]
[1739298559669,13.94171289,196.88,196.76,1.5948]
[1739298560067,0.03810288,196.84,196.8,0.03438678]
[1739298565166,0.03810288,196.84,196.8,13.97609967]
[1739298565371,77.30731365,196.9,196.81,1.4585]
[1739298565574,13.94171289,196.89,196.81,1.4585]
[1739298566771,5.0797,196.86,196.81,1.4585]
[1739298567269,5.08,196.84,196.81,1.4585]
[1739298567474,13.94171289,196.86,196.81,1.4585]
[1739298568776,13.94171289,196.83,196.8,0.03438678]
[1739298569177,5.082,196.77,196.71,169.4075]
[1739298569475,13.94171289,196.76,196.69,1.5328]
[1739298569682,13.94171289,196.79,196.7,5.0836]
[1739298569877,5.0813,196.8,196.71,1.5636]
[1739298570076,13.94171289,196.82,196.71,1.5636]
[1739298570271,0.03561802,196.77,196.74,0.03344569]
[1739298572178,13.94171289,196.82,196.74,0.03344569]
[1739298572585,13.94171289,196.85,196.74,0.03344569]
[1739298572786,13.94171289,196.85,196.72,1.6001]
[1739298572787,5.08,196.84,196.75,5.0821]
[1739298573086,5.08,196.84,196.76,1.5959]
[1739298573287,5.08,196.84,196.78,0.03531488]
[1739298573788,139.24325762,196.87,196.78,0.03531488]
[1739298574392,144.32255762,196.87,196.78,0.03531488]
[1739298574682,139.24325762,196.87,196.78,0.03531488]
[1739298575187,13.94171289,196.91,196.78,0.03531488]
[1739298575488,13.94171289,196.91,196.77,13.94171289]
[1739298575786,13.94171289,196.91,196.83,0.0342548]
[1739298576386,5.0787,196.89,196.83,0.0342548]
[1739298576788,13.94171289,196.91,196.83,0.0342548]
[1739298578185,5.0785,196.9,196.83,0.0342548]
[1739298578484,13.94171289,196.91,196.83,0.0342548]
[1739298578683,13.94171289,196.94,196.83,0.0342548]
[1739298578888,13.94171289,196.94,196.81,1.467]
[1739298579089,5.0779,196.93,196.87,0.03717882]
[1739298581589,13.94171289,196.94,196.87,0.03717882]
[1739298582286,5.0783,196.91,196.87,0.03717882]
[1739298582483,13.94171289,196.94,196.87,0.03717882]
[1739298583088,13.94171289,196.91,196.87,0.03717882]
[1739298583284,5.079,196.88,196.87,0.03717882]
[1739298583484,13.94171289,196.88,196.81,170.8745]
[1739298583792,5.08,196.84,196.81,1.467]
[1739298584692,0.03423813,196.84,196.81,1.50328647]
[1739298585591,0.03423813,196.84,196.81,0.03628647]
[1739298585789,13.94171289,196.82,196.81,0.03628647]
[1739298585987,19.02221289,196.82,196.81,0.03628647]
[1739298586389,13.94171289,196.82,196.75,1.5372]
[1739298587094,19.02241289,196.82,196.75,1.5372]
[1739298587297,13.94171289,196.82,196.75,1.5372]
[1739298587690,13.94171289,196.82,196.77,0.03749915]
[1739298590097,0.03423813,196.84,196.77,0.03749915]
[1739298590996,5.11443813,196.84,196.77,0.03749915]
[1739298591693,0.03423813,196.84,196.77,0.03749915]
[1739298592400,0.03423813,196.84,196.77,5.11909915]
[1739298593097,0.03423813,196.84,196.78,5.0815]
[1739298596303,0.03423813,196.84,196.77,5.11919915]
[1739298596503,0.03423813,196.84,196.77,0.03749915]
[1739298597003,13.94171289,196.82,196.77,0.03749915]
[1739298597202,5.081,196.81,196.77,0.03749915]
[1739298597899,13.94171289,196.82,196.77,0.03749915]
[1739298598808,5.0811,196.8,196.77,0.03749915]
[1739298599406,5.0816,196.78,196.77,0.03749915]
[1739298600309,0.03617236,196.79,196.77,0.03749915]
[1739298600906,5.0816,196.78,196.77,0.03749915]
[1739298602205,0.03617236,196.79,196.77,0.03749915]
[1739298603810,139.24325762,196.87,196.77,4.63939915]
[1739298604008,139.24325762,196.87,196.79,13.94171289]
[1739298605108,0.03573347,196.85,196.81,0.03755031]
[1739298605815,5.11553347,196.85,196.81,0.03755031]
[1739298606510,0.03573347,196.85,196.81,0.03755031]
[1739298607614,83.40732993,196.92,196.82,13.94171289]
[1739298608315,88.48542993,196.92,196.82,19.02221289]
[1739298608612,83.40732993,196.92,196.82,13.94171289]
[1739298608811,5.079,196.88,196.85,0.03471068]
[1739298609109,83.40732993,196.92,196.85,0.03471068]
[1739298610216,83.40732993,196.92,196.85,17.14502357]
[1739298610815,139.24325762,196.98,196.88,13.94171289]
[1739298611110,150.30783122,196.99,196.88,13.94171289]
[1739298611315,5.0764,196.98,196.91,0.03835406]
[1739298611516,150.30783122,196.99,196.91,0.03835406]
[1739298611715,139.24325762,196.99,196.91,0.03835406]
[1739298611915,5.0767,196.97,196.91,0.03835406]
[1739298612116,13.94171289,196.97,196.91,0.03835406]
[1739298612309,5.0771,196.96,196.91,0.03835406]
[1739298612508,13.94171289,196.97,196.91,0.03835406]
[1739298614220,5.0772,196.96,196.91,0.03835406]
[1739298614416,13.94171289,196.97,196.91,0.03835406]
[1739298616117,5.0779,196.92,196.91,0.03835406]
[1739298616421,13.94171289,196.94,196.86,1.5466]
[1739298616716,5.079,196.88,196.86,1.5466]
[1739298616919,13.94171289,196.9,196.86,1.5466]
[1739298617117,13.94171289,196.87,196.85,0.03296151]
[1739298618019,13.94171289,196.87,196.74,169.4075]
[1739298618221,13.94171289,196.84,196.74,169.4075]
[1739298619124,5.0805,196.82,196.74,169.4075]
[1739298619423,0.03547783,196.81,196.77,0.03854557]
[1739298621028,13.94171289,196.9,196.79,13.94171289]
[1739298621324,139.24325762,196.92,196.8,1.6062]
[1739298621524,144.32145762,196.92,196.81,5.0807]
[1739298621726,139.24325762,196.92,196.82,1.5122]
[1739298622226,139.24325762,196.92,196.85,0.03421992]
[1739298624028,5.078,196.92,196.85,0.03421992]
[1739298625030,13.94171289,196.93,196.85,0.03421992]
[1739298625431,5.0784,196.91,196.85,0.03421992]
[1739298625623,13.94171289,196.93,196.85,0.03421992]
[1739298626031,5.0787,196.9,196.85,0.03421992]
[1739298626226,13.94171289,196.93,196.85,0.03421992]
[1739298626427,5.0786,196.9,196.85,0.03421992]
[1739298626628,13.94171289,196.93,196.85,0.03421992]
[1739298627133,13.94171289,196.93,196.85,5.11391992]
[1739298628023,13.94171289,196.96,196.85,0.03421992]
[1739298628234,13.94171289,196.96,196.82,15.45391289]
[1739298628541,13.94171289,196.96,196.89,0.03667808]
[1739298629531,5.0774,196.95,196.89,0.03667808]
[1739298629733,13.94171289,196.96,196.89,0.03667808]
[1739298629934,5.0774,196.94,196.89,0.03667808]
[1739298630338,13.94171289,196.96,196.89,0.03667808]
[1739298630635,5.0774,196.94,196.89,0.03667808]
[1739298631137,13.94171289,196.96,196.89,0.03667808]
[1739298631338,13.94171289,196.99,196.89,0.03667808]
[1739298631638,13.94171289,196.99,196.85,183.34921289]
[1739298631837,5.0766,196.98,196.92,0.0368544]
[1739298632038,13.94171289,196.99,196.92,0.0368544]
[1739298632236,5.0758,197.01,196.92,0.0368544]
[1739298632540,13.94171289,197.02,196.92,0.0368544]
[1739298632839,5.0763,196.99,196.92,0.0368544]
[1739298633133,13.94171289,196.96,196.92,0.0368544]
[1739298633334,13.94171289,197.0,196.79,13.94171289]
[1739298633335,13.94171289,196.93,196.79,13.94171289]
[1739298633635,5.0789,196.89,196.79,5.0812]
[1739298634337,5.0793,196.87,196.78,5.0815]
[1739298634538,5.0793,196.87,196.81,0.03303305]
[1739298634539,0.03577355,196.84,196.81,0.03303305]
[1739298635934,13.97748644,196.84,196.81,0.03303305]
[1739298636440,5.0805,196.82,196.81,0.03303305]
[1739298637642,19.05758644,196.84,196.81,0.03303305]
[1739298638242,5.0803,196.83,196.81,0.03303305]
[1739298638437,13.97748644,196.84,196.81,0.03303305]
[1739298638840,5.0805,196.82,196.81,0.03303305]
[1739298640039,13.97748644,196.84,196.81,0.03303305]
[1739298640641,5.0803,196.83,196.81,0.03303305]
[1739298640832,13.97748644,196.84,196.81,0.03303305]
[1739298641542,0.03577355,196.84,196.81,0.03303305]
[1739298643840,13.97748644,196.84,196.81,0.03303305]
[1739298644442,5.0805,196.82,196.81,0.03303305]
[1739298645539,5.082,196.77,196.74,169.4075]
[1739298645741,13.94171289,196.79,196.68,3.1693]
[1739298646135,5.0816,196.78,196.69,5.0836]
[1739298646341,13.94171289,196.82,196.68,3.1693]
[1739298646742,0.0364588,196.77,196.73,0.03380088]
[1739298648541,0.0364588,196.77,196.73,5.11660088]
[1739298648935,0.0364588,196.77,196.74,5.0825]
[1739298649338,5.0805,196.83,196.75,3.0832]
[1739298649545,5.0801,196.84,196.75,3.0832]
[1739298649939,11.03930597,196.89,196.75,3.0832]
[1739298650535,0.03384667,196.84,196.8,0.03251731]
[1739298653247,22.33736622,196.84,196.8,0.03251731]
[1739298655350,5.0808,196.81,196.8,0.03251731]
[1739298655745,27.38431955,196.81,196.8,0.03251731]
[1739298655950,5.0818,196.78,196.74,1.6132]
[1739298656250,22.30351955,196.81,196.74,1.6132]
[1739298657051,0.03377371,196.79,196.76,0.03884267]
[1739298659354,0.03377371,196.79,196.76,5.12094267]
[1739298659551,0.03377371,196.79,196.77,1.6163]
[1739298660451,22.30351955,196.87,196.77,1.6163]
[1739298660654,227.71148796,196.89,196.77,1.6163]
[1739298661253,22.30351955,196.87,196.77,1.6163]
[1739298661651,0.03252162,196.84,196.8,0.03308036]
[1739298662856,0.03252162,196.84,196.8,5.11388036]
[1739298664354,0.03252162,196.84,196.81,5.0807]
[1739298664761,0.03252162,196.84,196.8,0.03308036]
[1739298665464,0.03252162,196.84,196.81,5.0807]
[1739298665858,0.03252162,196.84,196.8,0.03308036]
[1739298666661,0.03252162,196.84,196.8,5.11408036]
[1739298667062,0.03252162,196.84,196.81,5.0808]
[1739298667564,0.03252162,196.84,196.8,0.03308036]
[1739298667764,0.03252162,196.84,196.8,5.11408036]
[1739298668265,0.03252162,196.84,196.81,5.0807]
[1739298668760,22.30351955,196.93,196.8,0.03308036]
[1739298668964,22.30351955,196.96,196.8,191.71101955]
[1739298669359,22.30351955,196.96,196.84,5.0798]
[1739298669660,13.92936492,196.95,196.85,1.4846]
[1739298669853,13.92936492,196.95,196.86,1.4754]
[1739298670053,5.0777,196.93,196.88,0.03412888]
[1739298670659,19.00676492,196.95,196.88,0.03412888]
[1739298671363,13.92936492,196.95,196.88,0.03412888]
[1739298671963,85.71181322,196.98,196.88,0.03412888]
[1739298671964,5.0768,196.97,196.89,5.0787]
[1739298672161,99.64117814,196.98,196.88,0.03412888]
[1739298673564,5.0767,196.97,196.89,5.0787]
[1739298673765,99.64117814,196.98,196.88,0.03412888]
[1739298673965,99.64117814,196.98,196.88,13.9634938]
[1739298674165,99.64117814,196.98,196.91,5.0782]
[1739298674563,13.92936492,197.01,196.88,13.92936492]
[1739298674866,13.92936492,197.01,196.93,0.03846419]
[1739298675859,5.0761,197.0,196.93,0.03846419]
[1739298676066,5.0761,197.0,196.93,1.59746419]
[1739298676563,19.00496492,197.01,196.94,1.5028]
[1739298677767,13.92936492,197.01,196.94,1.5028]
[1739298677964,13.92936492,197.04,196.94,1.5028]
[1739298678170,13.92936492,197.04,196.94,6.5802]
[1739298678369,13.92936492,197.04,196.97,0.03674054]
[1739298678976,13.92936492,197.01,196.97,0.03674054]
[1739298679467,19.00436492,197.04,196.97,0.03674054]
[1739298681069,13.92936492,197.07,196.97,0.03674054]
[1739298681264,13.92936492,197.07,196.98,5.0762]
[1739298681461,13.92936492,197.07,197.01,0.03373163]
[1739298681667,19.00266492,197.1,197.01,0.03373163]
[1739298681868,13.92936492,197.1,197.01,1.5595]
[1739298682169,19.00286492,197.1,197.04,0.03294215]
[1739298682672,13.92936492,197.07,197.04,0.03294215]
[1739298683170,13.92936492,197.07,197.04,0.03831687]
[1739298683671,19.00346492,197.07,197.04,0.03831687]
[1739298683970,13.92936492,197.07,197.04,0.03831687]
[1739298684569,13.92936492,197.1,197.04,0.03831687]
[1739298684970,13.92936492,197.1,197.01,6.6351]
[1739298685164,13.92936492,197.1,197.05,0.03304594]
[1739298685572,5.073,197.12,197.05,0.03304594]
[1739298685772,13.92936492,197.13,197.05,0.03304594]
[1739298685974,13.92936492,197.13,197.03,13.92936492]
[1739298686169,13.92936492,197.13,197.07,0.03317289]
[1739298686473,13.92936492,197.16,197.07,0.03317289]
[1739298686874,5.0726,197.13,197.03,19.00426492]
[1739298687174,13.92936492,197.16,197.1,0.03822217]
[1739298687375,5.0726,197.13,197.1,0.03822217]
[1739298687572,5.0726,197.13,197.03,19.00426492]
[1739298687773,13.92936492,197.16,197.1,0.03518691]
[1739298687973,5.0725,197.14,197.04,5.0748]
[1739298688471,13.92936492,197.16,197.11,0.03231147]
[1739298688673,13.92936492,197.16,197.03,13.92936492]
[1739298688876,13.92936492,197.16,197.07,0.03598706]
[1739298689272,13.92936492,197.16,197.07,5.10998706]
[1739298689471,13.92936492,197.16,197.08,1.5014]
[1739298689976,5.0718,197.16,197.09,1.6122]
[1739298690173,13.92936492,197.19,197.09,15.54156492]
[1739298690474,13.92936492,197.19,197.09,17.08376492]
[1739298690876,5.0714,197.18,197.12,0.03540697]
[1739298691171,13.92936492,197.22,197.12,13.96477189]
[1739298691377,13.92936492,197.25,197.12,13.96477189]
[1739298691568,5.0703,197.22,197.12,13.92936492]
[1739298691876,5.0703,197.22,197.17,0.03268651]
[1739298692077,13.92936492,197.22,197.17,0.03268651]
[1739298692276,5.0711,197.19,197.17,0.03268651]
[1739298692577,13.92936492,197.22,197.17,0.03268651]
[1739298692970,13.92936492,197.25,197.17,0.03268651]
[1739298693183,5.0703,197.22,197.17,0.03268651]
[1739298693470,13.92936492,197.22,197.17,0.03268651]
[1739298693873,13.92936492,197.25,197.17,0.03268651]
[1739298694271,18.99886492,197.25,197.15,5.072]
[1739298694471,18.99886492,197.25,197.19,0.03350549]
[1739298695475,5.0701,197.23,197.19,0.03350549]
[1739298695676,13.92936492,197.22,197.19,0.03350549]
[1739298696075,13.92936492,197.22,197.16,1.4987]
[1739298696378,13.92936492,197.22,197.19,0.03555987]
[1739298696678,13.92936492,197.22,197.13,5.0725]
[1739298697177,13.92936492,197.22,197.19,0.03283653]
[1739298697583,13.92936492,197.22,197.1,1.5679]
[1739298697771,13.92936492,197.22,197.19,0.03392457]
[1739298697970,18.99966492,197.22,197.12,5.0727]
[1739298698174,13.92936492,197.25,197.12,13.92936492]
[1739298698376,13.92936492,197.28,197.19,0.03409916]
[1739298698680,13.92936492,197.28,197.15,13.92936492]
[1739298698681,18.99816492,197.28,197.17,5.0713]
[1739298698978,13.92936492,197.28,197.22,0.03608121]
[1739298699479,13.92936492,197.31,197.22,0.03608121]
[1739298700074,5.0684,197.3,197.22,0.03608121]
[1739298700476,5.0684,197.29,197.22,0.03608121]
[1739298702383,5.0682,197.3,197.22,0.03608121]
[1739298702582,13.92936492,197.34,197.22,0.03608121]
[1739298702784,0.93167391,197.33,197.23,5.0697]
[1739298702977,5.99927391,197.33,197.23,5.0697]
[1739298703177,13.92936492,197.34,197.26,0.0387594]
[1739298703378,0.9316703,197.33,197.26,0.0387594]
[1739298703980,5.0679,197.31,197.26,0.0387594]
[1739298704181,13.92936492,197.34,197.26,0.0387594]
[1739298704380,0.93166597,197.33,197.26,0.0387594]
[1739298704583,5.0681,197.31,197.26,0.0387594]
[1739298705279,13.92936492,197.34,197.26,0.0387594]
[1739298705485,5.0689,197.28,197.26,0.0387594]
[1739298705885,13.92936492,197.31,197.18,3.0996]
[1739298706084,13.92936492,197.31,197.25,0.03414057]
[1739298707185,5.0688,197.28,197.25,0.03414057]
[1739298708281,5.0692,197.26,197.25,0.03414057]
[1739298710488,5.0694,197.27,197.25,0.03414057]
[1739298710689,13.92936492,197.31,197.25,0.03414057]
[1739298710985,5.0688,197.3,197.21,5.0709]
[1739298711189,13.92936492,197.31,197.26,0.03711413]
[1739298711487,0.93180511,197.3,197.18,17.02896492]
[1739298711688,0.93180511,197.3,197.27,0.03239371]
[1739298711885,13.92936492,197.28,197.27,0.032793]
[1739298712086,27.85872984,197.3,197.15,169.4075]
[1739298712285,13.92936492,197.23,197.09,15.50706492]
[1739298712482,13.92936492,197.2,197.09,1.5777]
[1739298712788,5.072,197.18,197.09,1.5777]
[1739298712984,13.92936492,197.17,197.09,1.5777]
[1739298713189,0.03360474,197.15,197.12,0.03465946]
[1739298716988,139.24325762,197.24,197.14,5.0728]
[1739298717189,139.24325762,197.24,197.15,15.52916492]
[1739298718093,139.24325762,197.21,197.15,15.52916492]
[1739298718391,139.24325762,197.21,197.18,0.03256084]
[1739298719990,5.0698,197.26,197.18,0.03256084]
[1739298720188,5.07,197.25,197.18,0.03256084]
[1739298720390,139.24325762,197.28,197.18,0.03256084]
[1739298720783,5.0702,197.24,197.18,0.03256084]
[1739298721184,5.0696,197.27,197.18,0.03256084]
[1739298721794,144.31265762,197.28,197.19,5.0714]
[1739298721999,139.24325762,197.28,197.18,0.03256084]
[1739298722296,139.24325762,197.27,197.18,0.03256084]
[1739298723195,139.24325762,197.27,197.18,1.52586084]
[1739298723996,139.24325762,197.3,197.18,1.52586084]
[1739298724196,139.24325762,197.3,197.18,1.4933]
[1739298724403,139.24325762,197.3,197.22,0.03748072]
[1739298725298,144.31195762,197.3,197.22,5.10818072]
[1739298725501,139.24325762,197.3,197.22,0.03748072]
[1739298725797,139.24325762,197.31,197.22,0.03748072]
[1739298726004,139.24325762,197.31,197.2,22.21412603]
[1739298726299,139.24325762,197.31,197.25,0.03294219]
[1739298726693,139.24325762,197.31,197.25,5.10284219]
[1739298727203,139.24325762,197.31,197.25,0.03294219]
[1739298727397,139.24325762,197.31,197.26,5.0697]
[1739298727896,139.24325762,197.34,197.25,0.03294219]
[1739298728203,161.45738365,197.34,197.25,0.03294219]
[1739298728401,5.0687,197.3,197.25,0.03294219]
[1739298729404,5.069,197.29,197.25,0.03294219]
[1739298729606,26.01698096,197.34,197.25,0.03294219]
[1739298729804,22.21412603,197.34,197.25,0.03294219]
[1739298730003,5.0687,197.3,197.25,0.03294219]
[1739298730200,22.21412603,197.34,197.25,0.03294219]
[1739298730604,5.0684,197.31,197.25,0.03294219]
[1739298731004,5.0683,197.32,197.25,0.03294219]
[1739298731304,139.24325762,197.34,197.25,0.03294219]
[1739298731704,144.31115762,197.34,197.25,0.03294219]
[1739298731904,139.24325762,197.34,197.25,0.03294219]
[1739298732103,5.0683,197.32,197.25,0.03294219]
[1739298732307,161.45738365,197.34,197.25,0.03294219]
[1739298732609,5.0688,197.3,197.25,0.03294219]
[1739298732805,161.45738365,197.34,197.25,0.03294219]
[1739298733107,5.0686,197.31,197.25,0.03294219]
[1739298733307,161.45738365,197.34,197.25,0.03294219]
[1739298733507,22.21412603,197.34,197.25,0.03294219]
[1739298733708,5.0683,197.32,197.25,0.03294219]
[1739298733907,22.21412603,197.34,197.25,0.03294219]
[1739298734808,5.0681,197.33,197.25,0.03294219]
[1739298735103,113.1100333,197.36,197.25,0.03294219]
[1739298735310,5.0676,197.35,197.25,5.10284219]
[1739298735508,252.35329092,197.36,197.25,0.03294219]
[1739298736008,5.0682,197.32,197.25,0.03294219]
[1739298736406,5.0676,197.34,197.25,0.03294219]
[1739298736710,5.0676,197.34,197.25,1.61644219]
[1739298736711,22.21412603,197.34,197.25,1.61644219]
[1739298737610,5.0684,197.31,197.25,1.61644219]
[1739298738010,22.21412603,197.34,197.25,1.61644219]
[1739298738211,5.0683,197.32,197.25,1.61644219]
[1739298738411,22.21412603,197.34,197.25,1.61644219]
[1739298739114,27.28202603,197.34,197.25,1.61644219]
[1739298739310,13.44135819,197.36,197.25,1.61644219]
[1739298739617,13.87502863,197.35,197.25,1.61644219]
[1739298740414,5.0678,197.34,197.25,1.61644219]
[1739298741124,18.94242863,197.35,197.25,1.61644219]
[1739298741320,18.94242863,197.35,197.26,1.5417]
[1739298741823,5.0676,197.34,197.26,1.5417]
[1739298742024,13.87502863,197.35,197.26,1.5417]
[1739298742423,5.0683,197.32,197.26,1.5417]
[1739298743326,5.0685,197.31,197.25,1.61644219]
[1739298743531,13.87502863,197.32,197.25,1.61644219]
[1739298743825,13.87502863,197.32,197.25,1.5835]
[1739298744021,13.87502863,197.32,197.27,0.03367101]
[1739298744626,18.94332863,197.32,197.27,0.03367101]
[1739298744825,13.87502863,197.32,197.27,0.03367101]
[1739298745825,18.94322863,197.32,197.27,0.03367101]
[1739298746025,13.87502863,197.35,197.27,0.03367101]
[1739298746922,5.0681,197.33,197.27,0.03367101]
[1739298747122,13.87502863,197.35,197.27,0.03367101]
[1739298747528,13.87502863,197.35,197.27,5.10297101]
[1739298747829,13.87502863,197.35,197.27,0.03367101]
[1739298748329,5.0677,197.34,197.27,0.03367101]
[1739298749729,13.87502863,197.35,197.27,0.03367101]
[1739298750931,13.87502863,197.32,197.27,0.03367101]
[1739298751127,5.0687,197.3,197.27,0.03367101]
[1739298751929,5.0684,197.31,197.27,0.03367101]
[1739298753734,5.0687,197.3,197.27,0.03367101]
[1739298754033,13.87502863,197.32,197.27,0.03367101]
[1739298754633,5.0684,197.31,197.27,0.03367101]
[1739298755336,5.0687,197.3,197.27,0.03367101]
[1739298755736,13.87502863,197.29,197.27,0.03367101]
[1739298756037,13.87502863,197.29,197.2,1.5973]
[1739298756238,13.87502863,197.23,197.15,1.5027]
[1739298756437,13.87502863,197.23,197.15,2.9974]
[1739298756632,13.87502863,197.23,197.16,5.072]
[1739298757229,0.0371582,197.21,197.18,0.03338865]
[1739298758338,5.0712,197.2,197.18,0.03338865]
[1739298758937,0.0371582,197.21,197.18,0.03338865]
[1739298759840,5.1081582,197.21,197.18,0.03338865]
[1739298760246,0.0371582,197.21,197.18,0.03338865]
[1739298763341,5.1082582,197.21,197.18,0.03338865]
[1739298763542,0.0371582,197.21,197.18,0.03338865]
[1739298764542,18.94622863,197.2,197.18,0.03338865]
[1739298764939,13.87502863,197.2,197.18,0.03338865]
[1739298766343,0.0371582,197.21,197.18,0.03338865]
[1739298767745,5.1082582,197.21,197.18,0.03338865]
[1739298767942,0.0371582,197.21,197.18,0.03338865]
[1739298770145,5.1081582,197.21,197.18,0.03338865]
[1739298770347,0.0371582,197.21,197.18,0.03338865]
[1739298770648,18.94642863,197.2,197.18,0.03338865]
[1739298771146,13.87502863,197.2,197.18,0.03338865]
[1739298771748,18.94622863,197.2,197.18,0.03338865]
[1739298772049,13.87502863,197.2,197.18,0.03338865]
[1739298772848,5.0715,197.19,197.18,0.03338865]
[1739298777249,5.0725,197.15,197.08,172.5444]
[1739298777446,5.0725,197.15,197.08,3.1369]
[1739298778246,0.03433364,197.13,197.1,0.03480595]
[1739298778948,18.94632863,197.2,197.12,5.0731]
[1739298779250,5.0713,197.2,197.11,1.5324]
[1739298779447,5.071,197.21,197.13,5.0728]
[1739298779747,13.87502863,197.23,197.11,1.5324]
[1739298779953,5.0721,197.17,197.11,1.5324]
[1739298780255,0.03810531,197.19,197.15,0.03762328]
[1739298780852,5.0719,197.18,197.15,0.03762328]
[1739298781153,0.03810531,197.19,197.15,0.03762328]
[1739298783250,13.87502863,197.17,197.15,0.03762328]
[1739298784844,5.0722,197.16,197.15,0.03762328]
[1739298788051,5.0734,197.12,197.08,4.636]
[1739298788253,18.94842863,197.12,197.08,3.1369]
[1739298788453,13.87502863,197.12,197.08,3.1369]
[1739298789147,13.87502863,197.15,197.08,3.1369]
[1739298789353,0.03822527,197.12,197.08,3.17053217]
[1739298790156,13.9132539,197.12,197.08,3.17053217]
[1739298790752,5.0738,197.1,197.08,3.17053217]
[1739298790957,13.9132539,197.12,197.08,3.17053217]
[1739298793649,8.9005048,197.09,197.08,3.17053217]
[1739298794957,13.9745048,197.09,197.08,3.17053217]
[1739298795158,13.9745048,197.09,197.08,1.57283217]
[1739298795657,13.9745048,197.09,197.08,0.03363217]
[1739298795856,8.9005048,197.09,197.03,1.4759]
[1739298796056,8.9005048,197.04,197.01,1.459]
[1739298796360,99.12378121,197.17,197.01,1.459]
[1739298796361,8.9005048,197.02,197.01,1.459]
[1739298799864,13.95535719,197.03,197.01,1.459]
[1739298800259,19.03105719,197.03,197.01,1.459]
[1739298803165,13.95535719,197.03,197.01,1.459]
[1739298803566,0.03511535,197.03,197.01,1.459]
[1739298804065,13.92024184,197.09,197.01,1.459]
[1739298804764,13.92024184,197.12,197.01,1.459]
[1739298805174,5.0736,197.11,197.01,1.459]
[1739298805374,0.03226115,197.08,197.05,0.03604707]
[1739298808879,0.03226115,197.08,197.05,1.62494707]
[1739298809578,13.92024184,197.12,197.05,6.69994707]
[1739298809974,13.92024184,197.12,197.05,1.62494707]
[1739298810775,0.03200403,197.1,197.06,5.0748]
[1739298812775,0.03200403,197.1,197.05,6.69984707]
[1739298812980,0.03200403,197.1,197.05,1.62494707]
[1739298813580,0.03200403,197.1,197.07,5.0744]
[1739298813882,13.92024184,197.15,197.08,1.5964]
[1739298814778,13.92024184,197.18,197.08,1.5964]
[1739298815086,13.92024184,197.18,197.1,0.03515933]
[1739298815279,13.92024184,197.21,197.1,0.03515933]
[1739298815482,139.71734432,197.23,197.13,13.92024184]
[1739298815781,139.71734432,197.23,197.15,5.0725]
[1739298815979,139.71734432,197.23,197.16,1.5974]
[1739298816183,13.92024184,197.21,197.16,1.5974]
[1739298816683,13.92024184,197.21,197.17,0.03659595]
[1739298817476,13.92024184,197.18,197.17,0.03659595]
[1739298817782,13.92024184,197.18,197.14,1.5542]
[1739298818079,13.92024184,197.15,197.14,1.5542]
[1739298821678,8.89629551,197.15,197.14,1.5542]
[1739298823885,8.89629551,197.15,197.13,0.03657371]
[1739298824586,8.89629551,197.15,197.09,1.5642]
[1739298824784,8.89629551,197.1,197.09,1.5642]
[1739298825581,13.90614466,197.13,197.09,1.5642]
[1739298825782,0.03644062,197.11,197.09,1.5642]
[1739298827282,0.03644062,197.11,197.09,6.638]
[1739298827483,0.03644062,197.11,197.09,1.5642]
[1739298830386,0.03644062,197.11,197.09,6.6382]
[1739298831586,0.03644062,197.11,197.09,1.5642]
[1739298832287,0.03644062,197.11,197.09,6.6381]
[1739298832484,0.03644062,197.11,197.09,1.5642]
[1739298833085,0.03644062,197.11,197.09,6.6382]
[1739298833588,0.03644062,197.11,197.09,1.5642]
[1739298840488,13.90614466,197.1,197.08,1.63018368]
[1739298840695,13.90614466,197.1,197.08,0.03278368]
[1739298840891,5.074,197.09,197.08,0.03278368]
[1739298841386,5.075,197.06,197.02,3.0673]
[1739298842488,18.98074466,197.07,197.02,3.0673]
[1739298842695,0.03196336,197.06,197.02,3.10072597]
[1739298845096,0.03196336,197.06,197.03,1.5727]
[1739298845492,0.03196336,197.06,197.04,5.0753]
[1739298845892,18.97924466,197.13,197.05,5.0751]
[1739298846092,13.90614466,197.13,197.03,1.5727]
[1739298846787,139.71734432,197.15,197.03,15.47884466]
[1739298846989,18.97864466,197.16,197.03,15.47884466]
[1739298847189,0.03241204,197.11,197.07,0.03555535]
[1739298852397,8.89729655,197.09,197.07,0.03555535]
[1739298853293,14.00330859,197.11,197.07,0.03555535]
[1739298853498,8.92970859,197.11,197.07,0.03555535]
[1739298853901,0.03241204,197.11,197.07,5.11005535]
[1739298854101,0.03241204,197.11,197.07,0.03555535]
[1739298854500,8.92970859,197.11,197.07,0.03555535]
[1739298856101,14.00320859,197.11,197.07,0.03555535]
[1739298856899,8.89729655,197.09,197.07,0.03555535]
[1739298857299,8.92970859,197.11,197.07,0.03555535]